bitfinex/quotes_ETHUSD_20250505
["timestamp","ask_amount","ask_price","bid_price","bid_amount"]
[1746451983251,5.54804977,1802.5,1802.3,0.11586533]
[1746451983458,5.54906618,1802.2,1801.8,17.30099589]
[1746451983627,6.33712746,1802.3,1801.9,0.15842075]
[1746451983833,6.33712746,1802.3,1801.9,5.54968948]
[1746451984046,0.7885,1802.3,1802.0,0.15823201]
[1746451984253,6.33708845,1802.3,1801.8,0.64276899]
[1746451984430,6.33710532,1802.3,1801.9,5.70797442]
[1746451984632,6.33710532,1802.3,1801.9,5.70798989]
[1746451984840,6.33710532,1802.3,1801.9,5.70795629]
[1746451985159,6.33710532,1802.3,1801.6,5.55060987]
[1746451985160,0.7885,1802.3,1801.6,6.10061733]
[1746451985319,0.7885,1802.3,1802.2,5.54877372]
[1746451985732,0.7642,1802.6,1802.4,5.54793315]
[1746451986082,0.7642,1802.9,1802.8,5.546927]
[1746451986248,3.59935561,1803.1,1802.7,5.54702134]
[1746451986437,9.14545982,1803.1,1802.7,5.54705303]
[1746451986637,9.1453898,1803.1,1802.5,0.55]
[1746451986838,9.1453898,1803.1,1802.7,5.54703705]
[1746451987040,3.59935561,1803.1,1802.9,5.54637359]
[1746451987334,3.59935561,1803.1,1803.0,5.5463117]
[1746451987539,4.42305561,1803.2,1803.0,5.54621145]
[1746451987977,4.42305561,1803.2,1802.9,5.54640909]
[1746451988280,4.42305561,1803.2,1802.8,5.54673009]
[1746451988478,4.42305561,1803.2,1802.7,5.54709456]
[1746451988479,9.96894269,1803.2,1802.7,6.09703976]
[1746451988642,15.51488984,1803.2,1802.7,6.09703976]
[1746451988839,9.96890256,1803.2,1802.8,5.54687727]
[1746451989039,5.54606433,1803.1,1802.7,6.09700285]
[1746451989239,5.54632761,1803.0,1802.6,11.15843318]
[1746451989587,5.54632761,1803.0,1802.1,5.611]
[1746451989588,0.7624,1802.6,1802.1,5.611]
[1746451989740,5.54857687,1802.3,1801.8,11.0996876]
[1746451990079,5.54857687,1802.3,1801.9,11.09921435]
[1746451990264,0.01153435,1802.2,1801.8,5.54981483]
[1746451990443,0.01153435,1802.2,1801.9,5.54950077]
[1746451990640,0.01153435,1802.2,1801.8,5.54988262]
[1746451990880,0.01153435,1802.2,1801.9,5.54966259]
[1746451991282,0.01153435,1802.2,1802.1,5.54908162]
[1746451992342,0.01153435,1802.2,1801.9,6.09950569]
[1746451992581,0.01153435,1802.2,1802.0,5.5493617]
[1746451992880,0.01153435,1802.2,1801.9,5.54950569]
[1746451993181,5.54960432,1802.0,1801.6,5.55044937]
[1746451993388,0.01153435,1801.9,1801.6,5.55043383]
[1746451993583,0.01153435,1801.9,1801.8,5.55000555]
[1746451994155,0.01153435,1801.9,1801.8,12.24000555]
[1746451994588,0.01153435,1801.9,1801.8,6.14]
[1746451994901,0.01153435,1801.9,1801.8,2.94543592]
[1746451995057,0.01153435,1801.9,1801.8,8.49544147]
[1746451995251,0.01153435,1801.9,1801.8,2.94543592]
[1746451996851,0.01153435,1801.9,1801.8,9.04544147]
[1746451997075,0.01153435,1801.9,1801.8,8.49544147]
[1746451997465,0.01153435,1801.9,1801.8,9.83544147]
[1746451997659,0.01153435,1801.9,1801.8,10.68848439]
[1746451997900,0.01153435,1801.9,1801.8,2.94543592]
[1746451998090,0.01153435,1801.9,1801.8,8.49544147]
[1746451999157,6.32983189,1801.9,1801.8,2.94543592]
[1746451999351,0.78013435,1801.9,1801.8,2.94543592]
[1746451999552,6.32983189,1801.9,1801.4,5.55110101]
[1746451999756,6.32995891,1801.9,1801.4,5.55103143]
[1746451999953,5.55001678,1801.8,1801.4,5.55103143]
[1746452000190,0.01153435,1801.7,1801.5,5.55082617]
[1746452000369,5.56204465,1801.7,1801.3,11.21034234]
[1746452000568,5.55066556,1801.6,1801.3,5.55154312]
[1746452000790,0.01153435,1801.5,1801.3,5.55154312]
[1746452000990,5.5625965,1801.5,1801.1,5.55190098]
[1746452001192,5.5625965,1801.5,1801.0,5.55247084]
[1746452001193,0.01153435,1801.5,1801.0,5.55247084]
[1746452001379,0.01153435,1801.5,1801.4,5.55123792]
[1746452001587,0.01153435,1801.5,1801.3,5.55127939]
[1746452001781,0.01153435,1801.5,1801.4,5.55123792]
[1746452002104,0.01153435,1801.5,1801.2,5.18094598]
[1746452002290,0.01153435,1801.5,1801.2,10.73258415]
[1746452002491,5.56248676,1801.5,1801.2,5.18094598]
[1746452002683,0.01153435,1801.5,1801.2,5.18094598]
[1746452002885,5.56268819,1801.5,1801.2,5.18094598]
[1746452003210,0.7928,1801.4,1801.2,5.18094598]
[1746452003509,0.7928,1801.4,1801.3,5.54001176]
[1746452003684,6.3440729,1801.4,1801.2,5.18094598]
[1746452003886,0.7928,1801.4,1801.3,5.5515461]
[1746452004082,0.7928,1801.4,1801.2,5.18094598]
[1746452004526,6.34405638,1801.4,1801.1,5.55204599]
[1746452004809,0.7928,1801.4,1801.1,5.55204599]
[1746452005008,0.7985,1801.7,1801.3,5.5515461]
[1746452005510,0.7985,1801.7,1801.1,5.55198582]
[1746452005672,5.55127267,1801.4,1801.0,5.55232717]
[1746452005866,9.34886781,1801.7,1800.9,5.18094598]
[1746452006107,5.55083565,1801.6,1801.2,5.55174502]
[1746452006315,0.7985,1801.7,1801.4,5.5510097]
[1746452006473,0.7985,1801.7,1801.5,5.55090888]
[1746452006670,5.5507203,1801.6,1801.2,5.55158074]
[1746452006897,5.55106881,1801.5,1801.1,5.55197977]
[1746452007314,5.55207677,1801.2,1800.6,18.358]
[1746452007607,5.55164054,1801.3,1800.6,5.55364384]
[1746452007906,11.10343146,1801.3,1800.9,5.55273713]
[1746452008210,11.90074987,1801.5,1801.1,5.55195222]
[1746452008417,0.7985,1801.5,1801.2,5.55172996]
[1746452008622,0.7985,1801.5,1801.2,5.55155505]
[1746452008978,12.05967828,1801.9,1801.4,5.55123792]
[1746452008979,3.0,1801.8,1801.4,5.55123792]
[1746452009182,0.8077,1801.9,1801.6,5.55037487]
[1746452009416,0.8077,1801.9,1801.5,5.55092978]
[1746452009623,0.8077,1801.9,1801.6,5.55041052]
[1746452009921,0.8077,1801.9,1801.3,5.55140605]
[1746452010213,5.55077954,1801.6,1801.3,5.5515227]
[1746452010514,9.40443141,1801.7,1801.3,5.55151947]
[1746452010926,9.40443141,1801.7,1801.3,5.55144043]
[1746452011217,9.40443141,1801.7,1801.3,5.55135375]
[1746452011416,9.40443141,1801.7,1801.1,5.55216256]
[1746452011586,8.48806379,1801.8,1801.4,5.55117945]
[1746452011785,7.72777748,1801.8,1801.4,5.55101893]
[1746452012030,7.72777748,1801.8,1801.5,11.101568]
[1746452012181,7.72777748,1801.8,1801.6,5.55043422]
[1746452012388,7.72777748,1801.8,1801.7,5.55031359]
[1746452012597,7.72777748,1801.8,1801.7,9.73833495]
[1746452013785,7.72777748,1801.8,1801.7,8.55031359]
[1746452014293,2.93785655,1801.8,1801.7,9.10031359]
[1746452015128,2.93785655,1801.8,1801.7,8.55031359]
[1746452015291,2.93785655,1801.8,1801.7,5.55031359]
[1746452016122,2.93785655,1801.8,1801.7,9.10031359]
[1746452016287,2.93785655,1801.8,1801.7,11.41679378]
[1746452016486,2.93785655,1801.8,1801.7,11.3612945]
[1746452017020,2.93785655,1801.8,1801.7,8.55031359]
[1746452017200,3.69743331,1801.8,1801.7,8.55031359]
[1746452017600,3.69743331,1801.8,1801.7,5.55031359]
[1746452019095,3.69743331,1801.8,1801.7,9.10031359]
[1746452020038,2.93785655,1802.0,1801.7,9.10031359]
[1746452020039,6.63528986,1802.0,1801.9,5.54969754]
[1746452022106,6.63528986,1802.0,1801.9,6.36279754]
[1746452022433,3.69743331,1802.2,1802.1,5.54908162]
[1746452024412,3.69743331,1802.2,1802.0,5.54919038]
[1746452024649,3.69743331,1802.2,1802.1,5.54908162]
[1746452025444,3.69743331,1802.5,1802.2,5.54877372]
[1746452025647,3.69743331,1802.5,1802.4,5.54815801]
[1746452026148,3.69743331,1802.5,1802.3,5.54836322]
[1746452026442,3.69743331,1802.5,1802.4,5.54815801]
[1746452027144,3.69743331,1802.5,1802.4,9.09815801]
[1746452027716,5.66,1803.1,1802.5,6.0978502]
[1746452027717,6.64668187,1802.6,1802.5,6.0978502]
[1746452027918,6.64668187,1802.6,1802.5,5.5478502]
[1746452028718,6.64668187,1802.6,1802.3,5.54830312]
[1746452028913,12.19442383,1802.6,1802.3,5.54841887]
[1746452029113,6.64668187,1802.6,1802.3,5.54841887]
[1746452029357,6.64668187,1802.6,1802.3,5.54829009]
[1746452029583,6.64668187,1802.6,1802.4,5.5479386]
[1746452029716,6.64668187,1802.6,1802.5,5.5478502]
[1746452030123,6.64668187,1802.6,1802.5,6.8779502]
[1746452031434,6.64668187,1802.6,1802.5,15.05889618]
[1746452031635,6.64668187,1802.6,1802.5,15.99120386]
[1746452032035,6.64668187,1802.6,1802.5,14.50889618]
[1746452032358,4.78992093,1803.1,1802.7,5.54722339]
[1746452032359,3.69743331,1802.9,1802.7,5.54722339]
[1746452032959,3.69743331,1802.9,1802.8,5.546927]
[1746452034363,3.69743331,1802.9,1802.7,5.54699835]
[1746452034778,3.69743331,1802.9,1802.6,11.09474157]
[1746452034934,3.69743331,1802.9,1802.6,11.09470354]
[1746452035134,5.54647184,1803.0,1802.7,5.54722702]
[1746452035334,5.54618865,1803.1,1802.7,5.54722702]
[1746452035630,5.54679368,1802.9,1802.5,5.54771037]
[1746452035838,0.8217,1802.8,1802.5,5.54772523]
[1746452036034,0.8217,1802.8,1802.6,11.09486972]
[1746452036272,0.8217,1802.8,1802.7,5.5472347]
[1746452036461,0.8217,1803.0,1802.7,5.5472347]
[1746452036845,6.36804201,1803.0,1802.6,5.54745516]
[1746452037171,5.54682211,1802.9,1802.5,10.72862653]
[1746452037369,5.54682211,1802.9,1802.5,10.72856886]
[1746452037543,10.06547532,1803.0,1802.6,5.54753936]
[1746452037743,10.06547532,1803.0,1802.7,5.54720546]
[1746452037943,4.51913331,1803.0,1802.8,5.54687784]
[1746452038143,3.69743331,1803.0,1802.9,5.54661933]
[1746452038743,3.69743331,1803.0,1802.8,5.54675228]
[1746452039054,3.69743331,1803.0,1802.9,5.54661933]
[1746452040742,3.69743331,1803.3,1803.0,5.54609833]
[1746452040964,3.69743331,1803.3,1803.0,5.54608518]
[1746452041282,9.24299332,1803.3,1802.9,5.54652561]
[1746452041595,3.69743331,1803.3,1802.7,3.8234]
[1746452041743,3.69743331,1803.3,1803.2,5.54569653]
[1746452042185,3.69743331,1803.3,1803.2,10.72664251]
[1746452042684,3.69743331,1803.3,1803.2,13.72664251]
[1746452042884,3.69743331,1803.3,1803.2,14.27664251]
[1746452044084,3.69743331,1803.3,1803.2,15.03934251]
[1746452044292,3.69743331,1803.3,1803.2,17.09786485]
[1746452044493,3.69743331,1803.5,1803.4,6.09508151]
[1746452044709,3.69743331,1803.5,1803.4,12.07412749]
[1746452046265,3.69743331,1803.5,1803.4,15.07412749]
[1746452046470,3.69743331,1803.5,1803.4,18.64906424]
[1746452048282,3.69743331,1803.5,1803.4,15.07412749]
[1746452049197,5.62,1804.3,1804.0,5.54306099]
[1746452049399,6.2979333,1804.4,1804.3,5.54231557]
[1746452049400,0.7558,1804.4,1804.3,5.54231557]
[1746452049711,3.69743331,1804.5,1804.3,5.54218327]
[1746452050012,3.69743331,1804.5,1804.3,11.0843325]
[1746452050206,3.69743331,1804.5,1804.4,5.54200842]
[1746452050715,3.69743331,1804.5,1804.2,6.29482555]
[1746452050881,3.69743331,1804.5,1804.3,5.54218168]
[1746452051317,3.69743331,1804.5,1804.2,6.29473018]
[1746452051513,3.69743331,1804.5,1804.2,0.7524]
[1746452051677,3.69743331,1804.5,1804.1,5.54274895]
[1746452052011,3.69743331,1804.5,1804.2,5.54259644]
[1746452052184,9.23914329,1804.5,1804.0,6.01274598]
[1746452052390,9.99516318,1804.5,1804.1,5.5429098]
[1746452052588,4.45333331,1804.5,1804.1,5.5429098]
[1746452052800,4.45333331,1804.5,1804.2,5.54260703]
[1746452053006,4.45333331,1804.5,1804.0,5.18094598]
[1746452053190,5.54203233,1804.4,1804.0,10.72392202]
[1746452053416,5.54261767,1804.3,1804.0,5.18094598]
[1746452053680,11.08564726,1804.2,1804.0,5.18094598]
[1746452053880,0.7559,1804.5,1804.0,5.18094598]
[1746452054177,11.66057261,1804.9,1804.1,0.831]
[1746452054178,0.7996,1804.9,1804.1,0.831]
[1746452054374,5.54109073,1804.7,1804.3,5.54208723]
[1746452054631,5.54189583,1804.5,1804.1,5.617]
[1746452054827,0.8208,1804.4,1804.1,11.15971457]
[1746452054991,0.8208,1804.4,1804.1,5.617]
[1746452055615,0.8208,1804.4,1804.1,11.15980115]
[1746452055981,0.8208,1804.4,1804.1,11.15968983]
[1746452056314,0.8208,1804.4,1804.2,5.54251388]
[1746452057017,6.30266651,1804.7,1804.3,5.54231557]
[1746452057218,11.84400625,1804.7,1804.3,5.54231557]
[1746452057446,6.30266651,1804.7,1804.3,5.54231557]
[1746452057647,0.7614,1804.7,1804.5,5.54162908]
[1746452057921,0.7614,1804.7,1804.2,3.0]
[1746452058229,0.7614,1804.7,1804.5,5.54140409]
[1746452058591,3.69743331,1805.1,1804.9,5.54047315]
[1746452059421,3.69743331,1805.1,1805.0,5.5401662]
[1746452060000,3.69743331,1805.1,1804.9,11.08055795]
[1746452060335,3.69743331,1805.1,1805.0,5.5401662]
[1746452060639,3.69743331,1805.1,1805.0,10.72111218]
[1746452061420,3.69743331,1805.1,1804.8,1.3334]
[1746452061421,3.69743331,1805.1,1804.8,10.7215478]
[1746452061733,3.69743331,1805.1,1805.0,5.5401662]
[1746452061927,3.69743331,1805.1,1805.0,6.3014662]
[1746452062140,0.7501,1805.5,1805.2,5.53938191]
[1746452062298,0.7948,1805.6,1805.4,5.53883315]
[1746452062642,0.7948,1805.6,1805.1,0.55]
[1746452062810,6.3331308,1805.6,1805.2,5.53928339]
[1746452063000,0.7948,1805.6,1805.2,5.5392866]
[1746452063202,0.7948,1805.6,1805.3,5.5391321]
[1746452063418,0.7948,1805.6,1805.3,5.53905949]
[1746452063614,0.7948,1805.6,1805.4,5.53891523]
[1746452063840,10.03010473,1805.8,1805.4,5.53875941]
[1746452064137,4.49223331,1805.8,1805.2,10.75294598]
[1746452064336,10.03015374,1805.8,1805.4,5.53880396]
[1746452064511,4.49223331,1805.8,1805.5,5.53848712]
[1746452064833,3.69743331,1805.8,1805.3,0.05538585]
[1746452065039,3.69743331,1805.8,1805.5,5.53846462]
[1746452065618,6.33189894,1806.0,1805.6,5.53805259]
[1746452065619,0.7948,1806.0,1805.6,5.53805259]
[1746452065949,5.537438,1805.9,1805.5,5.53842225]
[1746452066234,0.7948,1806.0,1805.4,0.7914]
[1746452066613,6.33202181,1806.0,1805.6,5.53816943]
[1746452067040,5.53689281,1806.1,1805.6,0.55]
[1746452067257,3.69743331,1806.2,1805.7,5.53771488]
[1746452067459,5.53687396,1806.1,1805.8,5.53767571]
[1746452067660,5.53687396,1806.1,1805.7,5.5378121]
[1746452068131,5.53687396,1806.1,1805.8,5.53767233]
[1746452068330,9.23417532,1806.2,1805.7,5.5378121]
[1746452068544,5.53694896,1806.1,1805.7,5.5378121]
[1746452068738,9.23399617,1806.2,1805.8,0.0553768]
[1746452068941,5.53696777,1806.1,1805.8,5.18094598]
[1746452069335,14.77087224,1806.2,1805.8,10.7184987]
[1746452069555,5.53727969,1806.0,1805.8,5.18094598]
[1746452069765,0.7866,1806.4,1805.8,5.18094598]
[1746452069955,11.07336405,1806.2,1805.8,10.71849227]
[1746452070158,5.53664261,1806.2,1805.9,5.53738551]
[1746452070464,3.69743331,1806.5,1806.2,5.53646719]
[1746452070665,3.69743331,1806.5,1806.0,6.34980322]
[1746452070866,9.23316577,1806.5,1806.0,6.29437182]
[1746452071069,9.23316577,1806.5,1806.1,5.53665521]
[1746452071566,3.69743331,1806.5,1806.2,6.14173812]
[1746452071869,3.69743331,1806.5,1806.2,6.08629193]
[1746452072069,3.69743331,1806.5,1806.2,0.55]
[1746452072230,3.69743331,1806.5,1806.2,6.08632509]
[1746452072437,3.69743331,1806.5,1806.4,6.08587245]
[1746452072652,3.69743331,1806.5,1806.4,6.90137245]
[1746452073232,3.69743331,1806.5,1806.4,9.90137245]
[1746452073645,3.69743331,1806.5,1806.4,9.95672333]
[1746452073843,3.69743331,1806.5,1806.4,15.13766608]
[1746452074162,3.69743331,1806.5,1806.4,17.21056618]
[1746452074948,0.4146059,1806.7,1806.6,9.8373596]
[1746452075750,0.4146059,1806.7,1806.6,6.8373596]
[1746452076136,0.4146059,1806.7,1806.6,1.3021]
[1746452076363,0.4146059,1806.7,1806.6,0.55]
[1746452076674,0.4146059,1806.7,1806.5,5.568]
[1746452076835,0.4146059,1806.7,1806.6,6.6420596]
[1746452078141,0.4146059,1806.7,1806.6,6.69739938]
[1746452078344,0.4146059,1806.7,1806.6,6.6420596]
[1746452078544,0.4146059,1806.7,1806.6,6.0852596]
[1746452079270,0.4146059,1806.7,1806.6,9.0852596]
[1746452079796,0.4146059,1806.7,1806.6,3.0]
[1746452080321,0.4146059,1806.7,1806.6,8.59060634]
[1746452080527,0.4146059,1806.7,1806.5,5.568]
[1746452080821,5.9498,1806.7,1806.2,5.53618807]
[1746452081005,5.53547682,1806.6,1806.1,11.85512735]
[1746452081217,5.53587981,1806.4,1806.1,6.3186]
[1746452081389,5.53545675,1806.6,1806.2,5.53645077]
[1746452081713,5.53558017,1806.5,1806.2,5.53633675]
[1746452081920,5.53558017,1806.5,1806.1,11.85518606]
[1746452082079,5.53588418,1806.4,1806.1,11.85518606]
[1746452082297,5.53588418,1806.4,1806.1,5.566]
[1746452082498,5.53632302,1806.3,1806.1,5.566]
[1746452082702,5.53632302,1806.3,1805.8,0.7503]
[1746452082703,5.53630601,1806.3,1805.8,0.7503]
[1746452083028,5.53630601,1806.3,1805.7,5.566]
[1746452083029,5.53701079,1806.1,1805.7,11.10398418]
[1746452083188,5.53719684,1806.0,1805.7,5.566]
[1746452083830,0.7697,1806.2,1805.4,25.31084979]
[1746452083831,5.53796775,1805.8,1805.4,25.31084979]
[1746452084043,5.53750296,1805.9,1805.5,5.53861496]
[1746452084236,5.53771512,1805.8,1805.4,6.98278919]
[1746452084383,5.53771512,1805.8,1805.5,5.53861069]
[1746452084584,5.53771512,1805.8,1805.3,5.566]
[1746452084585,5.538443,1805.6,1805.3,5.566]
[1746452084830,3.7716,1805.8,1805.2,5.53939034]
[1746452085027,5.53858473,1805.6,1805.1,5.53975295]
[1746452085214,5.53876189,1805.5,1805.1,5.53975295]
[1746452085684,5.53876189,1805.5,1805.1,5.59514452]
[1746452086020,3.0,1805.6,1805.1,0.05539157]
[1746452086236,3.0,1805.6,1805.3,5.53919386]
[1746452086435,3.0,1805.6,1805.3,5.53913152]
[1746452086603,3.0,1805.6,1805.2,5.53938899]
[1746452086805,5.538756,1805.5,1805.1,6.0897263]
[1746452087003,8.53875903,1805.5,1805.1,6.08971018]
[1746452087204,0.7716,1805.8,1805.1,6.08971018]
[1746452087205,8.53812294,1805.7,1805.3,5.53913312]
[1746452087534,3.0,1806.0,1805.6,5.5382106]
[1746452087738,8.53729247,1806.0,1805.5,11.07706282]
[1746452087900,3.0,1806.0,1805.5,5.53839679]
[1746452088247,3.0,1806.0,1805.6,5.53830668]
[1746452088248,3.0,1805.9,1805.6,5.53830668]
[1746452088447,3.0,1806.0,1805.7,5.53789889]
[1746452088748,8.53729616,1806.0,1805.6,0.55]
[1746452088954,3.0,1805.8,1805.6,0.55]
[1746452089101,3.0,1805.9,1805.6,6.08819134]
[1746452089453,8.53756541,1805.9,1805.6,0.55]
[1746452089603,3.0,1805.9,1805.6,6.08831995]
[1746452089803,3.0,1806.0,1805.7,5.53797942]
[1746452090153,3.7716,1806.1,1805.7,5.53785522]
[1746452090509,3.7716,1806.1,1805.7,5.53777325]
[1746452090719,9.30841731,1806.1,1805.7,5.53783072]
[1746452091002,9.30841731,1806.1,1805.4,11.86169924]
[1746452091003,0.7716,1806.1,1805.5,0.55]
[1746452091215,16.5983056,1806.4,1806.0,5.53689535]
[1746452091454,3.0,1806.3,1806.0,11.07380433]
[1746452091655,7.36498589,1806.4,1806.1,5.536737]
[1746452091817,3.8268,1806.4,1806.1,5.536737]
[1746452092017,9.36279907,1806.4,1806.0,11.07380076]
[1746452092217,0.8268,1806.4,1805.9,0.55]
[1746452092529,0.8268,1806.4,1806.2,5.53621423]
[1746452092728,3.0,1806.5,1806.2,5.53621423]
[1746452093035,8.53563677,1806.5,1806.1,5.53665988]
[1746452093204,3.69743331,1806.6,1806.3,0.55]
[1746452093408,3.69743331,1806.6,1806.1,6.08668882]
[1746452093646,3.69743331,1806.6,1806.4,5.53585903]
[1746452093846,3.0,1806.5,1806.4,5.53566678]
[1746452094152,3.69743331,1806.6,1806.5,5.53556601]
[1746452094506,8.53571929,1806.5,1806.0,0.8055]
[1746452094849,8.53571929,1806.5,1806.1,5.5366428]
[1746452094850,9.31181929,1806.5,1806.1,5.5366428]
[1746452095214,9.31181929,1806.5,1806.1,11.07324806]
[1746452095455,9.31181929,1806.5,1806.1,5.53660526]
[1746452095623,9.31181929,1806.5,1806.2,5.53643468]
[1746452095819,9.31181929,1806.5,1806.1,5.53661236]
[1746452096022,3.0,1806.3,1806.0,5.53686979]
[1746452096250,3.0,1806.3,1805.9,11.03117516]
[1746452096251,8.53632057,1806.3,1805.9,11.03117516]
[1746452096415,3.0,1806.4,1806.1,5.53675647]
[1746452096609,5.5364861,1806.2,1805.9,11.03128998]
[1746452096814,8.53623047,1806.3,1806.0,5.53700217]
[1746452097051,3.0,1806.4,1806.1,5.53668964]
[1746452097557,3.7761,1806.5,1806.2,5.53636263]
[1746452097712,0.7761,1806.5,1806.1,5.53679198]
[1746452097910,0.7761,1806.5,1806.3,5.53607122]
[1746452098352,14.89098327,1806.7,1806.4,5.53587245]
[1746452098353,0.82071001,1806.7,1806.4,5.53587245]
[1746452098523,3.82071001,1806.7,1806.3,5.53604941]
[1746452098740,5.53531274,1806.6,1806.3,5.53604941]
[1746452098943,9.35587642,1806.7,1806.3,5.53604941]
[1746452099439,9.35587642,1806.7,1806.3,11.07198578]
[1746452099634,9.35587642,1806.7,1806.0,12.59705062]
[1746452099841,9.35587642,1806.7,1806.3,5.53600451]
[1746452100150,9.35587642,1806.7,1806.5,5.53540523]
[1746452100151,0.82071001,1806.7,1806.5,5.53540523]
[1746452100465,0.4146059,1806.7,1806.5,5.53536903]
[1746452100764,3.4146059,1806.7,1806.5,5.53553109]
[1746452100939,3.4146059,1806.7,1806.4,5.53568123]
[1746452101271,0.4146059,1806.7,1806.6,5.5352596]
[1746452101957,0.4146059,1806.7,1806.6,0.55]
[1746452102267,0.4146059,1806.7,1806.6,6.0852596]
[1746452102770,0.4146059,1806.7,1806.6,13.89215568]
[1746452102928,0.4146059,1806.7,1806.6,13.83681238]
[1746452103326,0.4146059,1806.7,1806.6,14.66271238]
[1746452103663,3.69743331,1807.1,1807.0,6.08403431]
[1746452103859,3.69743331,1807.1,1807.0,13.47524026]
[1746452104168,4.78992093,1807.6,1807.3,5.53311569]
[1746452104169,3.69743331,1807.4,1807.3,5.53311569]
[1746452104370,3.69743331,1807.4,1807.3,6.41784015]
[1746452104663,3.69743331,1807.4,1807.3,6.36251569]
[1746452104904,3.69743331,1807.4,1807.3,13.47781951]
[1746452105052,3.69743331,1807.4,1807.3,13.42249566]
[1746452105842,3.69743331,1807.4,1807.3,6.08311569]
[1746452106050,6.69743331,1807.4,1807.0,0.7862]
[1746452106225,3.0,1807.3,1807.2,5.53342186]
[1746452106431,3.69743331,1807.4,1807.3,5.53311569]
[1746452106675,3.69743331,1807.4,1807.3,6.08311569]
[1746452107028,3.69743331,1807.4,1807.3,12.59309566]
[1746452107531,3.69743331,1807.4,1807.3,14.48436741]
[1746452107937,12.02621718,1808.2,1807.3,14.48436741]
[1746452107938,4.36409998,1808.2,1807.9,5.53104629]
[1746452108139,4.36409998,1808.2,1807.9,5.5863532]
[1746452108466,3.0,1808.1,1807.9,0.55]
[1746452108632,3.0,1808.1,1807.8,0.8172]
[1746452108828,3.0,1808.1,1807.7,0.55]
[1746452109073,3.0,1807.7,1807.4,5.18094598]
[1746452109366,3.0,1807.8,1807.6,5.53210137]
[1746452109664,3.8253,1808.0,1807.8,0.55]
[1746452109869,0.8253,1808.0,1807.8,0.55]
[1746452110269,3.0,1807.9,1807.7,0.55]
[1746452110571,0.8253,1808.0,1807.7,5.53173036]
[1746452110771,3.0,1807.9,1807.8,0.55]
[1746452111141,3.0,1807.9,1807.5,5.53228614]
[1746452111450,3.8253,1808.0,1807.7,5.53162917]
[1746452111650,9.35627566,1808.0,1807.7,0.55]
[1746452112045,14.88748754,1808.0,1807.7,0.55]
[1746452112247,3.8253,1808.0,1807.7,0.55]
[1746452112570,3.0,1807.9,1807.7,0.55]
[1746452112774,5.53180049,1807.8,1807.4,5.53274368]
[1746452112951,0.66666667,1808.2,1808.1,5.53066755]
[1746452113149,0.66666667,1808.2,1808.1,13.38224752]
[1746452115370,0.66666667,1808.2,1808.1,6.87226755]
[1746452115879,0.66666667,1808.2,1808.1,6.92756363]
[1746452116088,0.66666667,1808.2,1808.1,6.87226755]
[1746452116381,0.66666667,1808.2,1808.1,5.53066755]
[1746452116745,0.66666667,1808.2,1808.1,6.08066755]
[1746452116946,0.66666667,1808.2,1808.0,5.53075256]
[1746452117140,0.66666667,1808.2,1808.1,5.53066755]
[1746452117788,0.66666667,1808.2,1808.1,6.08066755]
[1746452118192,0.66666667,1808.2,1808.1,7.99521339]
[1746452118395,0.66666667,1808.2,1808.1,14.5604893]
[1746452118556,0.66666667,1808.2,1808.1,14.50519336]
[1746452119194,0.66666667,1808.2,1808.1,6.83406755]
[1746452119357,0.66666667,1808.2,1808.1,5.53066755]
[1746452119697,0.66666667,1808.2,1808.1,6.13596715]
[1746452119866,0.66666667,1808.2,1808.1,12.64594712]
[1746452120077,0.66666667,1808.2,1808.1,13.35174752]
[1746452120283,0.66666667,1808.2,1808.1,20.42094734]
[1746452121186,0.11666667,1808.2,1808.1,20.42094734]
[1746452121362,0.4146059,1808.5,1808.4,6.85515005]
[1746452121562,0.4146059,1808.5,1808.4,18.89413002]
[1746452121797,0.4146059,1808.5,1808.4,24.075076]
[1746452121984,3.69743331,1809.2,1809.1,6.07761041]
[1746452122182,3.69743331,1809.2,1809.1,6.93487881]
[1746452122382,6.69743331,1809.4,1809.3,6.07699939]
[1746452122600,3.69743331,1809.4,1809.3,6.07699939]
[1746452122762,3.69743331,1809.4,1809.3,6.13226259]
[1746452123488,3.69743331,1809.4,1809.3,6.07699939]
[1746452123806,3.69743331,1809.4,1809.3,14.63018953]
[1746452123978,3.69743331,1809.4,1809.3,14.5749274]
[1746452127509,3.69743331,1809.4,1809.3,13.40897936]
[1746452128286,3.69743331,1809.4,1809.3,6.89899939]
[1746452128490,3.69743331,1809.4,1809.3,5.52699939]
[1746452129000,3.69743331,1809.4,1809.3,6.07699939]
[1746452129395,3.69743331,1809.4,1809.3,6.13225708]
[1746452129594,3.69743331,1809.4,1809.3,13.80818454]
[1746452129807,3.69743331,1809.4,1809.3,13.75292685]
[1746452130007,3.69743331,1809.4,1809.3,14.55222685]
[1746452131807,3.69743331,1809.4,1809.3,19.73317283]
[1746452134297,3.7629,1810.2,1810.1,5.52455665]
[1746452134520,0.7629,1810.2,1810.1,5.52455665]
[1746452134733,3.4146059,1810.4,1810.1,5.52455665]
[1746452134734,0.4146059,1810.4,1810.3,5.5239463]
[1746452134892,0.4146059,1810.4,1810.3,5.57917986]
[1746452135242,0.4146059,1810.4,1810.1,5.52439252]
[1746452135413,0.4146059,1810.4,1810.3,5.5239463]
[1746452135746,0.4146059,1810.4,1810.2,5.52407848]
[1746452136039,0.4146059,1810.4,1810.1,5.52434733]
[1746452136199,0.4146059,1810.4,1809.9,6.13039104]
[1746452136537,0.4146059,1810.4,1810.3,6.0739463]
[1746452136720,0.4146059,1810.4,1810.3,6.12917464]
[1746452137097,0.4146059,1810.4,1810.3,6.0739463]
[1746452137498,0.4146059,1810.4,1810.3,6.12917207]
[1746452137932,0.4146059,1810.4,1810.3,6.12917038]
[1746452138133,0.4146059,1810.4,1810.3,7.23928848]
[1746452138606,0.4146059,1810.4,1810.3,7.29451053]
[1746452139033,0.4146059,1810.4,1810.3,7.23928848]
[1746452139440,0.4146059,1810.4,1810.3,7.29450978]
[1746452140648,0.4146059,1810.4,1810.3,7.23928848]
[1746452140819,0.4146059,1810.4,1810.3,6.0739463]
[1746452141406,0.4146059,1810.4,1810.3,6.12916964]
[1746452142454,0.4146059,1810.4,1810.3,6.0739463]
[1746452142841,0.4146059,1810.4,1810.3,6.12916962]
[1746452143043,0.4146059,1810.4,1810.3,6.0739463]
[1746452144056,6.28372788,1810.3,1810.1,5.524]
[1746452144358,6.28372788,1810.3,1809.9,5.52493904]
[1746452144556,3.0,1810.2,1809.9,5.52493904]
[1746452144756,0.7596,1810.3,1809.9,5.52490003]
[1746452144930,0.7596,1810.3,1810.0,5.57989835]
[1746452145327,0.7596,1810.3,1810.0,5.58008046]
[1746452145545,0.7596,1810.3,1810.2,5.52425146]
[1746452145758,5.52486187,1810.0,1808.5,6.29297815]
[1746452145969,3.0,1809.4,1808.6,6.21343128]